[Event "*** Titled Tuesday Blitz"]
[Site "Chess.com"]
[Date "2018.06.05"]
[Round "3"]
[White "alpasya2009"]
[Black "Rakhmanov_Aleksandr"]
[Result "0-1"]
[WhiteElo "2408"]
[BlackElo "2690"]
[TimeControl "180+2"]
[EndTime "13:41:32 PDT"]
[Termination "Rakhmanov_Aleksandr won on time"]

1. d4 {[%clk 0:03:01.9]} 1... Nf6 {[%clk 0:02:58.5]} 2. Bf4 {[%clk 0:02:56.3]}
2... c5 {[%clk 0:02:55]} 3. d5 {[%clk 0:02:56.3]} 3... d6 {[%clk 0:02:55.9]} 4.
Nc3 {[%clk 0:02:56.4]} 4... e5 {[%clk 0:02:54.3]} 5. Bg5 {[%clk 0:02:53.3]} 5...
Be7 {[%clk 0:02:54.5]} 6. e4 {[%clk 0:02:53.1]} 6... Nxd5 {[%clk 0:02:27.9]} 7.
Bxe7 {[%clk 0:02:34.9]} 7... Nxe7 {[%clk 0:02:16.6]} 8. Nb5 {[%clk 0:02:28.4]}
8... d5 {[%clk 0:02:07.7]} 9. exd5 {[%clk 0:02:27.2]} 9... a6 {[%clk 0:01:52.6]}
10. Nc3 {[%clk 0:01:28.8]} 10... Nf5 {[%clk 0:01:44]} 11. Nf3 {[%clk 0:01:27.9]}
11... O-O {[%clk 0:01:43.1]} 12. Be2 {[%clk 0:01:25.3]} 12... Re8 {[%clk
0:01:39.1]} 13. O-O {[%clk 0:01:23.4]} 13... Nd6 {[%clk 0:01:40.4]} 14. a4
{[%clk 0:01:23.6]} 14... e4 {[%clk 0:01:41]} 15. Nd2 {[%clk 0:01:24.1]} 15...
Nd7 {[%clk 0:01:37.1]} 16. Nc4 {[%clk 0:01:24.1]} 16... Nf6 {[%clk 0:01:37.3]}
17. a5 {[%clk 0:01:21.6]} 17... Bf5 {[%clk 0:01:34.1]} 18. Nb6 {[%clk
0:01:12.3]} 18... Rb8 {[%clk 0:01:33]} 19. Re1 {[%clk 0:01:03.7]} 19... Qc7
{[%clk 0:01:27.1]} 20. h3 {[%clk 0:01:01.6]} 20... Re5 {[%clk 0:01:27.3]} 21.
Nc4 {[%clk 0:00:45.2]} 21... Re7 {[%clk 0:01:17.8]} 22. Ne3 {[%clk 0:00:44.5]}
22... Bg6 {[%clk 0:01:17.8]} 23. Bg4 {[%clk 0:00:29.1]} 23... Rbe8 {[%clk
0:01:16.8]} 24. Ra4 {[%clk 0:00:27.8]} 24... Re5 {[%clk 0:01:16.6]} 25. Be2
{[%clk 0:00:27.4]} 25... Nd7 {[%clk 0:01:08.6]} 26. Nc4 {[%clk 0:00:25]} 26...
Nxc4 {[%clk 0:01:09.7]} 27. Bxc4 {[%clk 0:00:26]} 27... Qd6 {[%clk 0:01:10.8]}
28. Re3 {[%clk 0:00:21.5]} 28... f5 {[%clk 0:01:08.9]} 29. g3 {[%clk 0:00:21.4]}
29... h6 {[%clk 0:01:08.6]} 30. Ne2 {[%clk 0:00:22.5]} 30... Bf7 {[%clk
0:01:06.1]} 31. h4 {[%clk 0:00:23.2]} 31... g5 {[%clk 0:01:05.9]} 32. hxg5
{[%clk 0:00:24.5]} 32... hxg5 {[%clk 0:01:07.8]} 33. Rb3 {[%clk 0:00:23.9]}
33... f4 {[%clk 0:01:01.8]} 34. Rxb7 {[%clk 0:00:16.5]} 34... e3 {[%clk
0:00:59.6]} 35. f3 {[%clk 0:00:12.4]} 35... fxg3 {[%clk 0:00:30.9]} 36. Nxg3
{[%clk 0:00:13.2]} 36... Rxd5 {[%clk 0:00:32.1]} 37. Bxd5 {[%clk 0:00:03.4]}
37... Qxg3+ {[%clk 0:00:33.3]} 38. Kh1 {[%clk 0:00:04.3]} 38... e2 {[%clk
0:00:34.1]} 39. Bxf7+ {[%clk 0:00:02.4]} 39... Kg7 {[%clk 0:00:35.5]} 40. Qg1
{[%clk 0:00:02.4]} 40... Rh8+ {[%clk 0:00:28.1]} 0-1

[Event "*** Titled Tuesday Blitz"]
[Site "Chess.com"]
[Date "2018.06.05"]
[Round "3"]
[White "Litti"]
[Black "plouarzel"]
[Result "0-1"]
[WhiteElo "2297"]
[BlackElo "2425"]
[TimeControl "180+2"]
[EndTime "13:41:37 PDT"]
[Termination "plouarzel won by resignation"]

1. e4 {[%clk 0:03:01.9]} 1... d6 {[%clk 0:02:59.6]} 2. d4 {[%clk 0:03:01.1]}
2... Nf6 {[%clk 0:03:00.8]} 3. Bd3 {[%clk 0:03:00]} 3... e5 {[%clk 0:02:58]} 4.
c3 {[%clk 0:03:00.6]} 4... d5 {[%clk 0:02:53.7]} 5. dxe5 {[%clk 0:03:00.9]} 5...
Nxe4 {[%clk 0:02:54.9]} 6. Nf3 {[%clk 0:02:51.1]} 6... Nc6 {[%clk 0:02:55.3]} 7.
Nbd2 {[%clk 0:02:48.5]} 7... Nc5 {[%clk 0:02:44.8]} 8. Bb1 {[%clk 0:02:47.5]}
8... Bg4 {[%clk 0:02:44.1]} 9. b4 {[%clk 0:02:37.2]} 9... Ne6 {[%clk 0:02:43.3]}
10. b5 {[%clk 0:02:35.4]} 10... Nxe5 {[%clk 0:02:41.2]} 11. Qa4 {[%clk
0:02:27.9]} 11... Bxf3 {[%clk 0:02:41.8]} 12. Nxf3 {[%clk 0:02:18.9]} 12...
Nxf3+ {[%clk 0:02:42.8]} 13. gxf3 {[%clk 0:02:20.8]} 13... Be7 {[%clk
0:02:42.6]} 14. Rg1 {[%clk 0:02:11.3]} 14... O-O {[%clk 0:02:42.2]} 15. Qc2
{[%clk 0:01:52.3]} 15... g6 {[%clk 0:02:42.3]} 16. Bh6 {[%clk 0:01:50.5]} 16...
Re8 {[%clk 0:02:43.7]} 17. Kf1 {[%clk 0:01:49.3]} 17... Bf6 {[%clk 0:02:43]} 18.
f4 {[%clk 0:01:43.3]} 18... Ng7 {[%clk 0:02:43.3]} 19. f5 {[%clk 0:01:39.2]}
19... Qd7 {[%clk 0:02:38]} 20. Qd3 {[%clk 0:01:25.4]} 20... Kh8 {[%clk
0:02:34.5]} 21. fxg6 {[%clk 0:01:15.5]} 21... fxg6 {[%clk 0:02:26.2]} 22. Qf3
{[%clk 0:00:44.3]} 22... Rf8 {[%clk 0:02:22]} 23. Bxg6 {[%clk 0:00:39.7]} 23...
hxg6 {[%clk 0:02:11.1]} 24. Rxg6 {[%clk 0:00:41.6]} 24... Qf5 {[%clk 0:01:54.3]}
25. Qg3 {[%clk 0:00:18.8]} 25... Rf7 {[%clk 0:01:41.1]} 26. Re1 {[%clk
0:00:18.6]} 26... Kh7 {[%clk 0:01:36.7]} 27. Rg4 {[%clk 0:00:18.9]} 27... Nh5
{[%clk 0:01:35.3]} 28. Qh3 {[%clk 0:00:17.6]} 28... Kxh6 {[%clk 0:01:34.8]} 29.
Re3 {[%clk 0:00:16.4]} 29... Bg5 {[%clk 0:01:31]} 30. Re2 {[%clk 0:00:09.1]}
30... Raf8 {[%clk 0:01:31]} 31. Kg2 {[%clk 0:00:09.8]} 31... Qxf2+ {[%clk
0:01:27.2]} 32. Rxf2 {[%clk 0:00:10.4]} 32... Rxf2+ {[%clk 0:01:29.1]} 33. Kg1
{[%clk 0:00:11.8]} 33... Rxa2 {[%clk 0:01:24]} 34. Qd3 {[%clk 0:00:08.3]} 34...
Ra1+ {[%clk 0:01:20.9]} 35. Kg2 {[%clk 0:00:09.4]} 35... Nf4+ {[%clk 0:01:21.9]}
36. Rxf4 {[%clk 0:00:10.6]} 36... Rxf4 {[%clk 0:01:23.3]} 37. Qh3+ {[%clk
0:00:09.5]} 37... Bh4 {[%clk 0:01:19.8]} 38. Qe6+ {[%clk 0:00:09.9]} 38... Rf6
{[%clk 0:01:21]} 39. Qxd5 {[%clk 0:00:11]} 39... Rf2+ {[%clk 0:01:21.7]} 40. Kh3
{[%clk 0:00:11.9]} 40... Bf6 {[%clk 0:01:09.5]} 41. Qxb7 {[%clk 0:00:12.5]}
41... Rg1 {[%clk 0:01:09.1]} 42. Qc6 {[%clk 0:00:10.9]} 42... Rf4 {[%clk
0:01:06.9]} 43. Qe4 {[%clk 0:00:03.1]} 43... Rxe4 {[%clk 0:01:07.2]} 0-1

[Event "*** Titled Tuesday Blitz"]
[Site "Chess.com"]
[Date "2018.06.05"]
[Round "3"]
[White "Gvalch"]
[Black "SCIM"]
[Result "1-0"]
[WhiteElo "2615"]
[BlackElo "2379"]
[TimeControl "180+2"]
[EndTime "13:41:40 PDT"]
[Termination "Gvalch won by checkmate"]

1. d4 {[%clk 0:03:01.9]} 1... d5 {[%clk 0:02:57.2]} 2. c4 {[%clk 0:03:03.2]}
2... e6 {[%clk 0:02:58.1]} 3. Nf3 {[%clk 0:03:04.3]} 3... Nf6 {[%clk 0:02:57.8]}
4. g3 {[%clk 0:03:05.3]} 4... dxc4 {[%clk 0:02:58.7]} 5. Bg2 {[%clk 0:03:06.7]}
5... a6 {[%clk 0:02:59]} 6. O-O {[%clk 0:03:07.6]} 6... Nc6 {[%clk 0:02:57.2]}
7. e3 {[%clk 0:03:08.6]} 7... Bd7 {[%clk 0:02:54.1]} 8. Qe2 {[%clk 0:03:06.6]}
8... Bd6 {[%clk 0:02:54.1]} 9. Qxc4 {[%clk 0:03:06.1]} 9... O-O {[%clk
0:02:55.2]} 10. Rd1 {[%clk 0:03:02.9]} 10... Rb8 {[%clk 0:02:53.7]} 11. a3
{[%clk 0:02:38]} 11... Qe7 {[%clk 0:02:53]} 12. Nc3 {[%clk 0:02:32.8]} 12... e5
{[%clk 0:02:51.5]} 13. dxe5 {[%clk 0:02:33.5]} 13... Nxe5 {[%clk 0:02:50.8]} 14.
Nxe5 {[%clk 0:02:34.8]} 14... Bxe5 {[%clk 0:02:50.5]} 15. e4 {[%clk 0:02:13.4]}
15... Be6 {[%clk 0:02:40.7]} 16. Qe2 {[%clk 0:02:13.4]} 16... Rfd8 {[%clk
0:02:36.7]} 17. Be3 {[%clk 0:02:02]} 17... Rxd1+ {[%clk 0:02:29.3]} 18. Rxd1
{[%clk 0:02:02.3]} 18... Rd8 {[%clk 0:02:30.1]} 19. Rxd8+ {[%clk 0:02:02.2]}
19... Qxd8 {[%clk 0:02:29.7]} 20. f4 {[%clk 0:02:03.7]} 20... Bd4 {[%clk
0:01:58.7]} 21. h3 {[%clk 0:01:24.6]} 21... h5 {[%clk 0:01:24.3]} 22. e5 {[%clk
0:01:21.5]} 22... Bxe3+ {[%clk 0:01:22.7]} 23. Qxe3 {[%clk 0:01:22.5]} 23... Nd5
{[%clk 0:01:11.6]} 24. Qd4 {[%clk 0:01:19.4]} 24... c6 {[%clk 0:01:06.5]} 25.
Ne4 {[%clk 0:01:20.7]} 25... Qa5 {[%clk 0:00:46.8]} 26. Nd2 {[%clk 0:00:57.2]}
26... g6 {[%clk 0:00:31.2]} 27. Kh2 {[%clk 0:00:51]} 27... Qb5 {[%clk
0:00:28.6]} 28. Bf1 {[%clk 0:00:35.9]} 28... Qa5 {[%clk 0:00:29.1]} 29. Nf3
{[%clk 0:00:22.5]} 29... Bf5 {[%clk 0:00:22.1]} 30. Bg2 {[%clk 0:00:16.8]} 30...
Qb5 {[%clk 0:00:20.4]} 31. Ng5 {[%clk 0:00:17.1]} 31... Qe2 {[%clk 0:00:19.9]}
32. e6 {[%clk 0:00:17.4]} 32... fxe6 {[%clk 0:00:16.9]} 33. Qa7 {[%clk
0:00:08.5]} 33... Qxb2 {[%clk 0:00:08]} 34. Qb8+ {[%clk 0:00:09.2]} 34... Kg7
{[%clk 0:00:07.7]} 35. Qe8 {[%clk 0:00:10]} 35... Qf6 {[%clk 0:00:05.5]} 36.
Qd7+ {[%clk 0:00:11]} 36... Qe7 {[%clk 0:00:06.2]} 37. Qc8 {[%clk 0:00:12.1]}
37... Qxa3 {[%clk 0:00:06.3]} 38. Bxd5 {[%clk 0:00:12.1]} 38... exd5 {[%clk
0:00:04.5]} 39. Qc7+ {[%clk 0:00:13.5]} 39... Kg8 {[%clk 0:00:03.7]} 40. Qf7+
{[%clk 0:00:14.4]} 40... Kh8 {[%clk 0:00:04.6]} 41. Qh7# {[%clk 0:00:15.6]} 1-0

[Event "*** Titled Tuesday Blitz"]
[Site "Chess.com"]
[Date "2018.06.05"]
[Round "3"]
[White "lupta_robin"]
[Black "Buffy7"]
[Result "1-0"]
[WhiteElo "2436"]
[BlackElo "2706"]
[TimeControl "180+2"]
[EndTime "13:41:41 PDT"]
[Termination "lupta_robin won by checkmate"]

1. e4 {[%clk 0:03:01.9]} 1... c5 {[%clk 0:02:57.4]} 2. Nf3 {[%clk 0:03:02.8]}
2... d6 {[%clk 0:02:58.1]} 3. d4 {[%clk 0:03:03.9]} 3... cxd4 {[%clk 0:02:59.1]}
4. Nxd4 {[%clk 0:03:05.5]} 4... Nf6 {[%clk 0:03:00.4]} 5. Nc3 {[%clk 0:03:06.8]}
5... Nc6 {[%clk 0:03:01.3]} 6. Bg5 {[%clk 0:03:07.6]} 6... e6 {[%clk 0:03:02.2]}
7. Qd2 {[%clk 0:03:08.2]} 7... a6 {[%clk 0:03:03.5]} 8. f4 {[%clk 0:03:04.4]}
8... Bd7 {[%clk 0:03:04.4]} 9. O-O-O {[%clk 0:03:05.5]} 9... b5 {[%clk
0:03:04.2]} 10. Bxf6 {[%clk 0:03:05.3]} 10... gxf6 {[%clk 0:03:06.1]} 11. Kb1
{[%clk 0:02:59.8]} 11... Qb6 {[%clk 0:03:06.2]} 12. Nxc6 {[%clk 0:02:52.3]}
12... Bxc6 {[%clk 0:03:08.1]} 13. f5 {[%clk 0:02:50.2]} 13... Qc5 {[%clk
0:03:07.4]} 14. fxe6 {[%clk 0:02:37.7]} 14... fxe6 {[%clk 0:03:09.3]} 15. Bd3
{[%clk 0:02:38.9]} 15... h5 {[%clk 0:02:51.5]} 16. Rhf1 {[%clk 0:02:38.5]} 16...
Bh6 {[%clk 0:02:47.3]} 17. Qe2 {[%clk 0:02:27.7]} 17... Qe5 {[%clk 0:02:47.8]}
18. Qf3 {[%clk 0:02:03.4]} 18... Bg5 {[%clk 0:02:30.2]} 19. g3 {[%clk
0:01:34.1]} 19... h4 {[%clk 0:02:30.6]} 20. Ne2 {[%clk 0:01:34.2]} 20... O-O-O
{[%clk 0:02:25.1]} 21. Nf4 {[%clk 0:01:32.3]} 21... Rhg8 {[%clk 0:02:17.2]} 22.
Qe3 {[%clk 0:01:11.8]} 22... Kb7 {[%clk 0:02:15.4]} 23. Qf2 {[%clk 0:01:07.8]}
23... hxg3 {[%clk 0:02:00.2]} 24. hxg3 {[%clk 0:01:08.4]} 24... Rd7 {[%clk
0:02:00.4]} 25. Rh1 {[%clk 0:01:01.7]} 25... Re7 {[%clk 0:01:44]} 26. Rhe1
{[%clk 0:00:58.6]} 26... Qc5 {[%clk 0:01:38.5]} 27. Qe2 {[%clk 0:00:54]} 27...
Qe5 {[%clk 0:01:25.8]} 28. Qf3 {[%clk 0:00:52.5]} 28... Qc5 {[%clk 0:01:23.3]}
29. Qe2 {[%clk 0:00:51.3]} 29... Bh6 {[%clk 0:01:20.8]} 30. Qf3 {[%clk
0:00:49.8]} 30... Qg5 {[%clk 0:01:19.6]} 31. Rh1 {[%clk 0:00:47.7]} 31... Bf8
{[%clk 0:01:14]} 32. Nh5 {[%clk 0:00:40.4]} 32... f5 {[%clk 0:01:10.6]} 33. Qe2
{[%clk 0:00:38.6]} 33... Qg4 {[%clk 0:01:06.8]} 34. Qe1 {[%clk 0:00:29.3]} 34...
Qg5 {[%clk 0:00:41.4]} 35. exf5 {[%clk 0:00:20.8]} 35... Bxh1 {[%clk 0:00:42]}
36. Qxh1+ {[%clk 0:00:21.5]} 36... d5 {[%clk 0:00:43.5]} 37. fxe6 {[%clk
0:00:21.4]} 37... Rxe6 {[%clk 0:00:44]} 38. Nf4 {[%clk 0:00:22]} 38... Rd6
{[%clk 0:00:44.3]} 39. Be2 {[%clk 0:00:21.7]} 39... Qxg3 {[%clk 0:00:32.4]} 40.
Nxd5 {[%clk 0:00:22.6]} 40... Kb8 {[%clk 0:00:33.4]} 41. Qe4 {[%clk 0:00:21]}
41... Qg5 {[%clk 0:00:27]} 42. Bf3 {[%clk 0:00:20.5]} 42... Qd8 {[%clk
0:00:24.6]} 43. Nc3 {[%clk 0:00:18.3]} 43... Rxd1+ {[%clk 0:00:21.5]} 44. Nxd1
{[%clk 0:00:20.2]} 44... Bc5 {[%clk 0:00:15.2]} 45. Qb7# {[%clk 0:00:19.9]} 1-0

[Event "*** Titled Tuesday Blitz"]
[Site "Chess.com"]
[Date "2018.06.05"]
[Round "3"]
[White "Margency"]
[Black "Matibar"]
[Result "0-1"]
[WhiteElo "2575"]
[BlackElo "2649"]
[TimeControl "180+2"]
[EndTime "13:41:50 PDT"]
[Termination "Matibar won by resignation"]

1. e4 {[%clk 0:03:01.9]} 1... e5 {[%clk 0:02:55.8]} 2. Nf3 {[%clk 0:03:02.6]}
2... Nc6 {[%clk 0:02:57.1]} 3. Bc4 {[%clk 0:03:03.5]} 3... Nf6 {[%clk
0:02:57.2]} 4. d3 {[%clk 0:03:04.7]} 4... Be7 {[%clk 0:02:56.6]} 5. O-O {[%clk
0:03:03.6]} 5... O-O {[%clk 0:02:57.4]} 6. Re1 {[%clk 0:03:04.7]} 6... d6 {[%clk
0:02:49.7]} 7. a4 {[%clk 0:03:05.8]} 7... Be6 {[%clk 0:02:44.6]} 8. Nc3 {[%clk
0:03:05.8]} 8... Qd7 {[%clk 0:02:45]} 9. h3 {[%clk 0:03:04.5]} 9... Rae8 {[%clk
0:02:43.4]} 10. a5 {[%clk 0:03:05.1]} 10... a6 {[%clk 0:02:44]} 11. Ng5 {[%clk
0:03:01.9]} 11... Kh8 {[%clk 0:02:30.2]} 12. Rf1 {[%clk 0:02:37.6]} 12... d5
{[%clk 0:02:14.2]} 13. exd5 {[%clk 0:01:55.6]} 13... Bxd5 {[%clk 0:02:12.5]} 14.
Nxd5 {[%clk 0:01:54.8]} 14... Nxd5 {[%clk 0:02:14.4]} 15. Qh5 {[%clk 0:01:46.4]}
15... Bxg5 {[%clk 0:02:14.8]} 16. Bxg5 {[%clk 0:01:43.2]} 16... Nd4 {[%clk
0:01:55.5]} 17. c3 {[%clk 0:01:43.3]} 17... Ne6 {[%clk 0:01:56.9]} 18. Bd2
{[%clk 0:01:28.6]} 18... Nef4 {[%clk 0:01:08.7]} 19. Bxf4 {[%clk 0:01:23.9]}
19... Nxf4 {[%clk 0:01:08.3]} 20. Qf3 {[%clk 0:01:25]} 20... c6 {[%clk
0:01:09.2]} 21. Rfe1 {[%clk 0:01:19.5]} 21... Qc7 {[%clk 0:01:06.4]} 22. Re3
{[%clk 0:01:12.5]} 22... f6 {[%clk 0:01:06.4]} 23. h4 {[%clk 0:01:06.4]} 23...
Rd8 {[%clk 0:01:03.2]} 24. g3 {[%clk 0:01:07]} 24... Nd5 {[%clk 0:01:04.1]} 25.
Ree1 {[%clk 0:01:01.5]} 25... Ne7 {[%clk 0:01:00.1]} 26. Qe4 {[%clk 0:00:42.9]}
26... Qd7 {[%clk 0:00:43.5]} 27. d4 {[%clk 0:00:30.8]} 27... Nf5 {[%clk
0:00:26.8]} 28. dxe5 {[%clk 0:00:30.8]} 28... fxe5 {[%clk 0:00:28.7]} 29. Qxe5
{[%clk 0:00:24.9]} 29... Nxh4 {[%clk 0:00:29.5]} 30. gxh4 {[%clk 0:00:14.7]}
30... Qg4+ {[%clk 0:00:30]} 31. Qg3 {[%clk 0:00:16.2]} 31... Qxc4 {[%clk
0:00:31.6]} 32. Re7 {[%clk 0:00:17.4]} 32... Rf7 {[%clk 0:00:32.2]} 33. Rae1
{[%clk 0:00:16.6]} 33... Rdf8 {[%clk 0:00:31]} 34. R1e4 {[%clk 0:00:14.1]} 34...
Qd5 {[%clk 0:00:20.2]} 35. Rxf7 {[%clk 0:00:09.1]} 35... Qxf7 {[%clk 0:00:21.1]}
36. Rd4 {[%clk 0:00:08.9]} 36... h6 {[%clk 0:00:20.9]} 37. Qe3 {[%clk
0:00:08.6]} 37... Qg6+ {[%clk 0:00:21.2]} 38. Qg3 {[%clk 0:00:09.8]} 38... Qf6
{[%clk 0:00:22.2]} 39. Kg2 {[%clk 0:00:10.3]} 39... Rf7 {[%clk 0:00:20.3]} 40.
b4 {[%clk 0:00:10]} 40... Qf5 {[%clk 0:00:20.7]} 41. Rd8+ {[%clk 0:00:08.4]}
41... Kh7 {[%clk 0:00:22]} 42. Qd3 {[%clk 0:00:09.8]} 42... Qxd3 {[%clk
0:00:21.2]} 43. Rxd3 {[%clk 0:00:11.7]} 43... Kg6 {[%clk 0:00:21.8]} 44. Kg3
{[%clk 0:00:12.8]} 44... Re7 {[%clk 0:00:22.2]} 45. Rd7 {[%clk 0:00:13.5]} 45...
Rxd7 {[%clk 0:00:22.7]} 0-1

[Event "*** Titled Tuesday Blitz"]
[Site "Chess.com"]
[Date "2018.06.05"]
[Round "3"]
[White "TheCount"]
[Black "Iball95"]
[Result "1-0"]
[WhiteElo "2528"]
[BlackElo "2533"]
[TimeControl "180+2"]
[EndTime "13:41:50 PDT"]
[Termination "TheCount won by resignation"]

1. d4 {[%clk 0:03:01.9]} 1... d5 {[%clk 0:02:56.9]} 2. c4 {[%clk 0:03:02.7]}
2... c6 {[%clk 0:02:58.3]} 3. cxd5 {[%clk 0:03:02.2]} 3... cxd5 {[%clk
0:03:00.2]} 4. Nc3 {[%clk 0:03:03.5]} 4... Nc6 {[%clk 0:03:01.5]} 5. Bf4 {[%clk
0:03:04.5]} 5... Nf6 {[%clk 0:03:02.1]} 6. e3 {[%clk 0:03:04.8]} 6... a6 {[%clk
0:03:03.5]} 7. Rc1 {[%clk 0:03:05.3]} 7... Bg4 {[%clk 0:03:03]} 8. Qb3 {[%clk
0:03:05.4]} 8... Na5 {[%clk 0:03:03.9]} 9. Qa4+ {[%clk 0:03:06.1]} 9... Bd7
{[%clk 0:03:05.3]} 10. Qc2 {[%clk 0:03:07.2]} 10... e6 {[%clk 0:03:05.8]} 11.
Bd3 {[%clk 0:03:07.5]} 11... Be7 {[%clk 0:03:07.1]} 12. Nf3 {[%clk 0:03:03.1]}
12... O-O {[%clk 0:03:07.6]} 13. O-O {[%clk 0:03:03.9]} 13... b5 {[%clk
0:03:08.6]} 14. a3 {[%clk 0:03:02.8]} 14... Rc8 {[%clk 0:03:08.2]} 15. Qe2
{[%clk 0:02:55.9]} 15... Nc4 {[%clk 0:03:09.1]} 16. e4 {[%clk 0:02:51.2]} 16...
dxe4 {[%clk 0:03:08]} 17. Nxe4 {[%clk 0:02:52.4]} 17... Nxe4 {[%clk 0:03:09.1]}
18. Qxe4 {[%clk 0:02:53.1]} 18... g6 {[%clk 0:03:10.5]} 19. Bh6 {[%clk
0:02:26.1]} 19... Bc6 {[%clk 0:02:41.1]} 20. Qf4 {[%clk 0:02:20.5]} 20... Bd6
{[%clk 0:02:28.2]} 21. Ne5 {[%clk 0:02:06.4]} 21... f6 {[%clk 0:01:50.9]} 22.
Qg4 {[%clk 0:01:16.6]} 22... fxe5 {[%clk 0:01:33.4]} 23. Bxg6 {[%clk 0:01:11]}
23... Qf6 {[%clk 0:01:15.5]} 24. Be8+ {[%clk 0:00:42.8]} 24... Kh8 {[%clk
0:01:04.5]} 25. Bxf8 {[%clk 0:00:44.3]} 25... Bxf8 {[%clk 0:00:57.2]} 26. Bxc6
{[%clk 0:00:41.7]} 26... Rxc6 {[%clk 0:00:57.6]} 27. Qe4 {[%clk 0:00:37.9]}
27... Rd6 {[%clk 0:00:48.8]} 28. Rxc4 {[%clk 0:00:36.5]} 28... exd4 {[%clk
0:00:32.3]} 29. Rc6 {[%clk 0:00:33.8]} 29... Kg7 {[%clk 0:00:27.1]} 30. Rd1
{[%clk 0:00:29.9]} 30... e5 {[%clk 0:00:27.1]} 31. Rxd6 {[%clk 0:00:28.8]} 31...
Bxd6 {[%clk 0:00:29]} 32. Rd3 {[%clk 0:00:20.9]} 32... Qh6 {[%clk 0:00:20.8]}
33. Rg3+ {[%clk 0:00:20.8]} 33... Kf7 {[%clk 0:00:21.7]} 34. h4 {[%clk
0:00:19.6]} 34... Ke6 {[%clk 0:00:13.9]} 35. Rg5 {[%clk 0:00:20.3]} 35... a5
{[%clk 0:00:10.8]} 36. g3 {[%clk 0:00:21.3]} 36... b4 {[%clk 0:00:10.4]} 37.
axb4 {[%clk 0:00:23.2]} 37... axb4 {[%clk 0:00:12.2]} 38. b3 {[%clk 0:00:24.7]}
38... Qf6 {[%clk 0:00:10.2]} 39. Qxh7 {[%clk 0:00:24.5]} 39... Qf3 {[%clk
0:00:09.6]} 40. Qg8+ {[%clk 0:00:21.5]} 40... Kd7 {[%clk 0:00:10.1]} 41. Rg7+
{[%clk 0:00:21.5]} 41... Be7 {[%clk 0:00:08.6]} 42. Qc4 {[%clk 0:00:18.6]} 42...
d3 {[%clk 0:00:06.5]} 43. Qxb4 {[%clk 0:00:18.5]} 43... Qf6 {[%clk 0:00:06.7]}
44. Rxe7+ {[%clk 0:00:17.2]} 44... Qxe7 {[%clk 0:00:08.6]} 45. Qb5+ {[%clk
0:00:18.8]} 45... Ke6 {[%clk 0:00:08.8]} 46. Qxd3 {[%clk 0:00:20.7]} 46... Qc5
{[%clk 0:00:09.8]} 47. Qc4+ {[%clk 0:00:21.6]} 1-0

[Event "*** Titled Tuesday Blitz"]
[Site "Chess.com"]
[Date "2018.06.05"]
[Round "3"]
[White "Shant_Sargsyan"]
[Black "olomi007"]
[Result "1-0"]
[WhiteElo "2907"]
[BlackElo "2643"]
[TimeControl "180+2"]
[EndTime "13:41:52 PDT"]
[Termination "Shant_Sargsyan won by resignation"]

1. d4 {[%clk 0:03:01.9]} 1... Nf6 {[%clk 0:03:00.8]} 2. Nf3 {[%clk 0:03:02.9]}
2... g6 {[%clk 0:03:00.5]} 3. c4 {[%clk 0:03:03.4]} 3... Bg7 {[%clk 0:03:01.3]}
4. g3 {[%clk 0:03:04.7]} 4... c6 {[%clk 0:03:01.7]} 5. Bg2 {[%clk 0:03:04.7]}
5... O-O {[%clk 0:03:02.5]} 6. Nc3 {[%clk 0:03:04]} 6... d5 {[%clk 0:03:03.2]}
7. Qb3 {[%clk 0:03:05.6]} 7... Qb6 {[%clk 0:02:59.9]} 8. O-O {[%clk 0:03:06.6]}
8... Qxb3 {[%clk 0:02:49.2]} 9. axb3 {[%clk 0:03:07.2]} 9... Na6 {[%clk
0:02:47.7]} 10. Bg5 {[%clk 0:03:06.3]} 10... Be6 {[%clk 0:02:46.2]} 11. Ne5
{[%clk 0:03:00.6]} 11... Nc7 {[%clk 0:02:44.4]} 12. Rfd1 {[%clk 0:02:54.9]}
12... h6 {[%clk 0:02:44.8]} 13. Bf4 {[%clk 0:02:45.2]} 13... g5 {[%clk
0:02:45.6]} 14. Nxc6 {[%clk 0:02:32.6]} 14... gxf4 {[%clk 0:02:31.5]} 15. Nxe7+
{[%clk 0:02:33.4]} 15... Kh8 {[%clk 0:02:31.1]} 16. cxd5 {[%clk 0:02:35.3]}
16... Bd7 {[%clk 0:02:00.9]} 17. gxf4 {[%clk 0:02:33.2]} 17... Nb5 {[%clk
0:01:41.4]} 18. Nxb5 {[%clk 0:02:04.6]} 18... Bxb5 {[%clk 0:01:42]} 19. e4
{[%clk 0:02:06.5]} 19... Nh5 {[%clk 0:01:39.3]} 20. f5 {[%clk 0:01:49.3]} 20...
Bf6 {[%clk 0:01:23.9]} 21. d6 {[%clk 0:01:49.1]} 21... Nf4 {[%clk 0:01:18.6]}
22. Bf3 {[%clk 0:01:00.1]} 22... Ne2+ {[%clk 0:01:19.3]} 23. Bxe2 {[%clk
0:00:39.5]} 23... Bxe2 {[%clk 0:01:19.8]} 24. f4 {[%clk 0:00:38.5]} 24... Bh4
{[%clk 0:01:13.4]} 25. Kg2 {[%clk 0:00:18.4]} 25... Bxd1 {[%clk 0:00:34.6]} 26.
Rxd1 {[%clk 0:00:20.3]} 26... Rfe8 {[%clk 0:00:31]} 27. e5 {[%clk 0:00:10]}
27... Bxe7 {[%clk 0:00:31.3]} 28. dxe7 {[%clk 0:00:11.9]} 28... Rxe7 {[%clk
0:00:32.7]} 29. Kf3 {[%clk 0:00:13.1]} 29... Rc8 {[%clk 0:00:32.6]} 30. d5
{[%clk 0:00:08.9]} 30... Rd8 {[%clk 0:00:17.8]} 31. d6 {[%clk 0:00:09.6]} 31...
Red7 {[%clk 0:00:19.1]} 32. f6 {[%clk 0:00:06.1]} 32... Kg8 {[%clk 0:00:19.8]}
33. Ke4 {[%clk 0:00:06]} 33... Kf8 {[%clk 0:00:19.7]} 34. f5 {[%clk 0:00:05]}
34... a5 {[%clk 0:00:18.9]} 35. Rc1 {[%clk 0:00:05.5]} 35... b5 {[%clk
0:00:19.6]} 36. Kd5 {[%clk 0:00:06.7]} 36... a4 {[%clk 0:00:20.4]} 37. b4 {[%clk
0:00:08]} 37... Ra7 {[%clk 0:00:20.1]} 38. Rc6 {[%clk 0:00:07.4]} 38... Rad7
{[%clk 0:00:20.6]} 39. e6 {[%clk 0:00:07.7]} 39... Ra7 {[%clk 0:00:20.9]} 40.
e7+ {[%clk 0:00:08.6]} 40... Ke8 {[%clk 0:00:22.2]} 41. exd8=Q+ {[%clk
0:00:09.7]} 41... Kxd8 {[%clk 0:00:24.1]} 42. Rb6 {[%clk 0:00:09.4]} 42... a3
{[%clk 0:00:25.5]} 43. bxa3 {[%clk 0:00:10.7]} 43... Rxa3 {[%clk 0:00:27.1]} 44.
Rb8+ {[%clk 0:00:12]} 44... Kd7 {[%clk 0:00:28]} 45. Rb7+ {[%clk 0:00:13.9]}
45... Ke8 {[%clk 0:00:29.4]} 46. Re7+ {[%clk 0:00:13.7]} 46... Kd8 {[%clk
0:00:28.6]} 47. Rxf7 {[%clk 0:00:14.1]} 47... Rd3+ {[%clk 0:00:30.2]} 48. Kc5
{[%clk 0:00:15.2]} 48... Rc3+ {[%clk 0:00:31.3]} 49. Kxb5 {[%clk 0:00:16.5]} 1-0